Cogmind - Beta 14 *** ADVENTURER MODE // 2024.10.26 @ 21:19:43 Player: Murdock2099 Result: Destroyed by Y-45 Defender with Heavy Assault Rifle Performance ------------- Evolutions (1) 500 Regions Visited (3) 600 Robots Destroyed (12) 60 Value Destroyed (441) 441 Prototype IDs (1) 20 Alien Tech Used (0) 0 Bonus (0) 0 TOTAL SCORE: 1621 Bonus ------- None Cogmind --------- Core Integrity 0/400 Matter 250/300 Energy 100/100 System Corruption 0% Temperature Cool (0) Movement Rolling (90) Location -9/Storage Parts ------- > --- POWER (1) -------- (None) > --- PROPULSION (4) --- Armored Wheel > --- UTILITY (2) ------ Small Storage Unit Visual Processing Unit > --- WEAPON (2) ------- Improved Heavy Machine Gun > --- INVENTORY (8) ---- (None) Peak State ------------ > --- POWER ------------ Ion Engine > --- PROPULSION ------- Light Treads Light Treads Armored Wheel Armored Wheel > --- UTILITY ---------- Small Storage Unit Hardened Light Armor Plating > --- WEAPON ----------- Medium Laser Improved Heavy Machine Gun > --- INVENTORY -------- Visual Processing Unit [Rating: 17] Favorites ----------- Power Light Ion Engine Engine Light Ion Engine Propulsion Aluminum Leg Treads Light Treads Leg Aluminum Leg Wheel Armored Wheel Utility Small Storage Unit Device Sensor Array Storage Small Storage Unit Processor Visual Processing Unit Protection Hardened Light Armor Plating Weapon Assault Rifle Energy Gun Medium Laser Ballistic Gun Assault Rifle Build | -11 -10 -9 -9 ------- Run | Yrd Mat Mat Sto Slots Evolved 2 | . . 2 . Power . | . . . . Propulsion 2 | . . 2 . Utility . | . . . . Weapon . | . . . . Parts Attached 20 | 6 1 1 12 Power 2 | 1 . . 1 Engine 2 | 1 . . 1 Core . | . . . . Reactor . | . . . . Propulsion 9 | 2 . 1 6 Treads 2 | . . . 2 Leg 5 | 2 . 1 2 Wheel 2 | . . . 2 Hover . | . . . . Flight . | . . . . Utility 4 | 1 1 . 2 Device 1 | . 1 . . Storage 1 | 1 . . . Processor 1 | . . . 1 Hackware . | . . . . Protection 1 | . . . 1 Artifact . | . . . . Weapon 5 | 2 . . 3 Energy Gun 2 | 1 . . 1 Energy Cannon . | . . . . Ballistic Gun 3 | 1 . . 2 Ballistic Cannon . | . . . . Launcher . | . . . . Special Weapon . | . . . . Impact Weapon . | . . . . Slashing Weapon . | . . . . Piercing Weapon . | . . . . Special Melee Weapon . | . . . . Unidentified Prototypes 1 | . . . 1 Parts Lost 13 | . . . 13 Power 2 | . . . 2 Propulsion 6 | . . . 6 Utility 2 | . . . 2 Weapon 3 | . . . 3 Highest Loss Streak 7 | . . . 7 To Critical Strikes . | . . . . Average Slot Usage (%) 79 | . 87 78 77 Engine 9 | . 14 11 7 Treads 3 | . . . 5 Leg 22 | . 28 23 21 Wheel 2 | . . . 3 Device 6 | . 2 11 5 Storage 11 | . 14 11 11 Protection 1 | . . . 2 Energy Gun 7 | . 14 11 4 Ballistic Gun 13 | . 14 11 13 Peak Build Rating 17 | 6 7 10 17 Average Rating 8 | 4 6 7 10 On Entrance 5 | . 6 7 10 Naked Turns . | . . . . Heaviest Build 21 | 12 13 13 21 Greatest Support 43 | 20 20 33 43 Greatest Overweight (x) . | . . . . Average Overweight (x) . | . . . . Largest Inventory Capacity 8 | 8 8 8 8 Average Capacity 7 | 6 8 8 8 Most Carried 8 | 4 4 8 8 Average Carried 4 | 2 3 4 5 Final Capacity 8 | 8 8 8 8 Final Carried 7 | 3 3 7 . Class Distribution -------------------- 100% | Mutant Dominant Class ---------------- Mutant | -10/Materials Mutant | -9/Materials Mutant | -9/Storage Resources | -11 -10 -9 -9 ----------- Run | Yrd Mat Mat Sto Matter Collected 448 | 210 . . 238 Remotely . | . . . . Salvage Created 531 | . 13 . 518 Parts 28 | . . . 28 Haulers Intercepted . | . . . . Recyclers Shooed . | . . . . Parts Field Recycled . | . . . . Retrieved Matter . | . . . . Parts Self-Destructed . | . . . . Prevented . | . . . . Kills | -11 -10 -9 -9 ------- Run | Yrd Mat Mat Sto Combat Hostiles Destroyed 12 | . 1 . 11 Guns 12 | . 1 . 11 Classes Destroyed 3 | . 1 . 2 Swarmer 1 | . 1 . . Grunt 7 | . . . 7 Sentry 4 | . . . 4 Best Kill Streak 2 | . 1 . 2 Combat Bots Only 2 | . 1 . 2 Max Kills in Single Turn 1 | . 1 . 1 Gunslinging . | . . . . Exploded . | . . . . Melee . | . . . . Uniques/NPCs Destroyed . | . . . . Combat | -11 -10 -9 -9 -------- Run | Yrd Mat Mat Sto Hostile Shots Fired 296 | . 20 . 276 Missed 88 | . 3 . 85 Damage Taken 2160 | . 102 . 2058 Core 431 | . 22 . 409 Absorbed by Shields . | . . . . Ignored by Resistances 633 | . 34 . 599 Core Remaining (%) 95 | 100 91 . . Volleys Fired 49 | . 5 2 42 Largest 2 | . 2 2 2 Hottest 73 | . 70 70 73 Shots Fired 81 | . 10 4 67 Gun 81 | . 10 4 67 Cannon . | . . . . Launcher . | . . . . Special . | . . . . Kinetic 51 | . 5 2 44 Thermal 30 | . 5 2 23 Explosive . | . . . . Electromagnetic . | . . . . Robot Hit Streak 14 | . 3 3 14 Robot Miss Streak 4 | . 4 1 2 Penetration Max . | . . . . Secondary Targets 1 | . . . 1 Max Gunslinging Chain 1 | . . . 1 Shots Hit Robots 64 | . 4 3 57 Core Hits 24 | . 1 1 22 Critical Kills . | . . . . Critical Parts Destroyed . | . . . . Critical Strikes 2 | . . . 2 Burn 2 | . . . 2 Melee Attacks . | . . . . Impact . | . . . . Slashing . | . . . . Piercing . | . . . . Sneak Attacks . | . . . . Combat Hostiles . | . . . . Follow-up Attacks . | . . . . Damage Inflicted 927 | . 52 36 839 Guns 927 | . 52 36 839 Cannons . | . . . . Explosions . | . . . . Melee . | . . . . Ramming . | . . . . Kinetic 633 | . 26 23 584 Thermal 294 | . 26 13 255 Explosive . | . . . . Electromagnetic . | . . . . Impact . | . . . . Slashing . | . . . . Piercing . | . . . . Highest Corruption . | . . . . Average Corruption . | . . . . Corruption Purged . | . . . . Corruption Blocked . | . . . . Overload Shots . | . . . . Overflow Damage . | . . . . Projectiles . | . . . . Explosions . | . . . . Melee . | . . . . Knockbacks . | . . . . Impact . | . . . . Kinetic . | . . . . Secondary . | . . . . Self-Inflicted Damage . | . . . . Shots . | . . . . Rammed . | . . . . Targets Rammed . | . . . . Kicked . | . . . . Crushed . | . . . . Highest Temperature 133 | . 45 . 133 Average Temperature 37 | . 23 . 40 Received Heat Transfer 1137 | . . . 1137 Siege Activations . | . . . . Robots Corrupted . | . . . . Combat Hostiles . | . . . . Parts Fried . | . . . . Impact Corruptions . | . . . . Robots Melted . | . . . . Combat Hostiles . | . . . . Parts Melted 3 | . . . 3 Heat Transferred 999 | . 74 37 888 Parts Sabotaged . | . . . . Parts Stolen . | . . . . Parts Stripped . | . . . . Power Chain Reactions . | . . . . Alert | -11 -10 -9 -9 ------- Run | Yrd Mat Mat Sto Peak Influence 257 | . 61 21 257 Initial 21 | . . 21 7 Average 53 | . 15 21 78 Maximum Alert Level 1 | . . . 1 Low Security (%) 93 | 100 100 100 88 Level 1 6 | . . . 11 Level 2 . | . . . . Level 3 . | . . . . Level 4 . | . . . . Level 5 . | . . . . High Security . | . . . . Max Security . | . . . . Squads Dispatched 4 | . . 1 3 Investigation 2 | . . . 2 Extermination . | . . . . Reinforcement 2 | . . 1 1 Assault . | . . . . Garrison . | . . . . Intercept . | . . . . Searches Triggered . | . . . . Construction Impeded . | . . . . Haulers Reinforced . | . . . . Active Scanning Responses . | . . . . Cargo Convoy Interrupts . | . . . . Stealth | -11 -10 -9 -9 --------- Run | Yrd Mat Mat Sto Distress Signals 2 | . 1 . 1 Communications Jammed . | . . . . Distress Signals . | . . . . Times Spotted 26 | . 6 1 19 Peak Tracking Total 7 | . 4 2 7 Tactical Retreats 3 | . 1 . 2 Traps | -11 -10 -9 -9 ------- Run | Yrd Mat Mat Sto Traps Triggered 2 | . . . 2 Indirectly . | . . . . Trap Hack Attempts . | . . . . Triggered . | . . . . Disarmed . | . . . . Reprogrammed . | . . . . Reused . | . . . . Traps Extracted . | . . . . Installed . | . . . . Triggered . | . . . . Machines | -11 -10 -9 -9 ---------- Run | Yrd Mat Mat Sto Machines Disabled . | . . . . Max in Single Turn . | . . . . Machines Repaired . | . . . . Machines Dismantled . | . . . . Machines Sabotaged . | . . . . Overloaded Fab Kills . | . . . . Hacking | -11 -10 -9 -9 --------- Run | Yrd Mat Mat Sto Machines Accessed 7 | . 2 . 5 Terminals 7 | . 2 . 5 Fabricators . | . . . . Repair Stations . | . . . . Recycling Units . | . . . . Scanalyzers . | . . . . Garrison Access . | . . . . Total Hacks 19 | . 3 . 16 Successful 13 | . 3 . 10 Failed 6 | . . . 6 Catastrophic 2 | . . . 2 Database Lockouts . | . . . . Manual . | . . . . Terminals 19 | . 3 . 16 Fabricators . | . . . . Repair Stations . | . . . . Recycling Units . | . . . . Scanalyzers . | . . . . Garrison Access . | . . . . Terminal Hacks 13 | . 3 . 10 Record 4 | . 1 . 3 Open Door 3 | . . . 3 Unreport Threat 2 | . . . 2 Locate Traps 1 | . 1 . . Dispatch Records 1 | . . . 1 Maintenance Status 2 | . 1 . 1 Fabricator Hacks . | . . . . Repair Station Hacks . | . . . . Recycling Unit Hacks . | . . . . Scanalyzer . | . . . . Garrison Access Hacks . | . . . . Unauthorized Hacks . | . . . . Terminals . | . . . . Fabricators . | . . . . Repair Stations . | . . . . Recycling Units . | . . . . Scanalyzers . | . . . . Garrison Access . | . . . . Data Cores Recovered . | . . . . Used . | . . . . Hacking Detections 2 | . . . 2 Full Trace Events 2 | . . . 2 Feedback Events . | . . . . Feedback Blocked . | . . . . Robot Schematics Acquired . | . . . . Robots Built . | . . . . Authchips . | . . . . Time . | . . . . Total Robot Build Rating . | . . . . Part Schematics Acquired . | . . . . Parts Built . | . . . . Authchips . | . . . . Time . | . . . . Total Part Build Rating . | . . . . Parts Repaired . | . . . . Time . | . . . . Parts Recycled . | . . . . Recycled Matter . | . . . . Retrieved Matter . | . . . . Retrieved Components . | . . . . Parts Scanalyzed . | . . . . Part Schematics Acquired . | . . . . Parts Damaged . | . . . . Bothacking | -11 -10 -9 -9 ------------ Run | Yrd Mat Mat Sto Used RIF Installer . | . . . . Robots Hacked . | . . . . Non-combat . | . . . . Combat . | . . . . Robot Hacks Applied . | . . . . Relay Couplers Released . | . . . . Fabnet Peak Effective % . | . . . . Robots Rewired . | . . . . Allies Hacked . | . . . . Hacks Repelled . | . . . . Allies | -11 -10 -9 -9 -------- Run | Yrd Mat Mat Sto Total Allies . | . . . . Largest Group . | . . . . Highest-Rated Group . | . . . . Highest-Rated Ally . | . . . . Total Orders . | . . . . Ally Attacks . | . . . . Total Damage . | . . . . Kills . | . . . . Allies Corrupted . | . . . . Allies Melted . | . . . . Intel | -11 -10 -9 -9 ------- Run | Yrd Mat Mat Sto Robot Analysis Total . | . . . . Derelict Logs Recovered . | . . . . Drone Launches . | . . . . Drone Recoveries . | . . . . Exploration | -11 -10 -9 -9 ------------- Run | Yrd Mat Mat Sto Turns Passed 782 | 55 110 137 480 Spaces Moved 482 | 40 78 103 261 Core 11 | 11 . . . Treads 45 | . . . 45 Legs 396 | 29 78 103 186 Wheels 30 | . . . 30 Hover . | . . . . Flight . | . . . . Fastest Speed 50 | 50 120 120 90 Average Speed 120 | 100 120 120 123 Slowest Speed 160 | 120 120 120 160 Overloaded Moves . | . . . . Propulsion Burnouts . | . . . . Robots Hopped . | . . . . Cave-ins Triggered . | . . . . Exploration Rate (%) 18 | 3 22 9 40 Regions Visited 3 Branch Regions 1 Pre-discovered Areas . | . . . . Known Exits Taken . | . . . . Unknown Exits Taken 3 | 1 1 1 . Scrap Searched . | . . . . Spaces Dug . | . . . . Terrain Destroyed 1 | . . . 1 Melee . | . . . . Projectile 1 | . . . 1 AOE . | . . . . Terrain Rammed . | . . . . Walls Destroyed . | . . . . Machines Disabled . | . . . . Actions | -11 -10 -9 -9 --------- Run | Yrd Mat Mat Sto Total 603 | 54 84 112 353 Wait 34 | . . 2 32 Move 479 | 39 77 102 261 Hop . | . . . . Pick Up 17 | 9 1 5 2 Fast Attach 1 | . . . 1 Attach 17 | 6 1 1 9 Detach . | . . . . Swap 2 | . . . 2 Drop 2 | . . . 2 Fire 49 | . 5 2 42 Melee . | . . . . Ram . | . . . . Kick . | . . . . Crush . | . . . . Escape Stasis . | . . . . Rewire 2 | . . . 2 Trap . | . . . . Miscellaneous . | . . . . Route ------- -11/Scrapyard -10/Materials -9/Materials -9/Storage History --------- Turn | Location | Event 35 | -11/Scrapyard | Discovered new exit (range 15) 56 | -11/Scrapyard | Entered Materials 150 | -10/Materials | Discovered new exit (range 13) 166 | -10/Materials | Entered another Materials area 166 | -9/Materials | Evolved 2 slots: Propulsion x2 177 | -9/Materials | Discovered new exit (range 16) 303 | -9/Materials | Entered Storage 308 | -9/Storage | Build established: Mutant 633 | -9/Storage | Lost 7 parts (1p3n1u2w) 703 | -9/Storage | Core integrity fell below 50% 761 | -9/Storage | Core integrity fell below 20% 783 | -9/Storage | Destroyed by Y-45 Defender with Heavy Assault Rifle Last Messages --------------- typing and use autocomplete if desired (Up/Down/Tab/Enter). So-called indirect hacking has a lower chance of success, and is described in more detail in the manual. >>Open(Door) Sealed Heavy Doors opened. Connecting with Door Terminal... >>Open(Door) Sealed Heavy Doors opened. Hrd. Light Armor Plating destroyed. G-34 Mercenary destroyed. Y-45 Defender destroyed. Lgt. Treads destroyed. Destroyed Heat Sink. G-34 Mercenary destroyed. Y-45 Defender suffers critical hit (Burn). Med. Laser destroyed. Critical hit (Burn: +37). Arm. Wheel destroyed. Y-45 Defender suffers critical hit (Burn). Map ----- +----------------------------------------------------+ | ?? #####+###### #???????????????????????? | | ?? #???# #????# #???????????????????????? | | ??" #???# #????# ###########?????????????? | | ??" #???# #????# # #?????????????? | | ??" #####/###### # #?????????????? | | ??" ## # # """ #?????????????? | | ?? ## """ # # """ #?????????????? | | ??#+## "??""" # # """ ##????????????? | | ### ## !"????" / # """ "T" #????????????? | | ##[%"??????# #=" " """ ##????????????? | | ## =""""???# %/=! ! #?????????????? | | / % "???# *###########?????????????? | | ###### # #???????????????????????? | | ?????########### #???????????????????????? | | ???##########??# #???????????????????????? | | ???# ??# #???????????????????????? | | ???# ?# #????##?????????????????? | | ???# ?# #????#!?????????????????? | | ???# # #????#! ????????????????? | | ???# # #????#! ????????????????? | | ???# / #?????! ????????????????? | | ???# # #????## ###?????????????? | | ???############# =##???? T###???????????? | | ??????????????# %!#######+##T#"??????????? | | ??????????????# =%Y*= "??????????? | | #####?????????# Y!*%[@ "??????????? | | #?????????#[ ######;;####"??????????? | | #?????????###+##????## T#?????????????? | | """ #???????????# T#?????# ##?????????????? | | """ #???????????# ##?????#]#??????????????? | | """ #???????????# #??????###??????????????? | | """ #???????????###???????????????????????? | | """ #?????????????????????????????????????? | | #?????????????????????????????????????? | | #####?????????????????????????????????????? | | | | | | | | | | | | | | | | | | | | | | | | | | | | | | | +----------------------------------------------------+ Best States ------------- Heat Dissipation 28 Energy Generation 10 Energy Capacity 250 Matter Stores 300 Matter Capacity 300 Sight Range 18 Robot Scan Range 14 Terrain Scan Density 10 Armor Coverage 150 Resistance: KI 20 Resistance: TH 20 Resistance: EX 20 Resistance: EM 20 Resistance: I 20 Resistance: S 20 Resistance: P 20 Evasion (%) 55 Recoil Reduction 2 Offensive Hacking 10 Item Schematics ----------------- None Robot Schematics ------------------ None Fabricated ------------ Nothing Alien Tech Used ----------------- None Achievements -------------- Everything Is Under Control Challenges ------------ None Game ------ Seed CoordinationFactoryCannon Manual? 0 Play Time 00:12:36 Cumulative 2.4 hours Start 2024.10.26 @ 21:04:22 End 2024.10.26 @ 21:19:43 Sessions 1 Manual Loads 0 Difficulty Adventurer Special Mode None Game No. 11 Rogue 0 Adventurer 11 Explorer 0 Win Type - Total 0 Types 0/0/0/0/0/0/0/0/0 Lore% 2 Gallery% 6 Achievement% 7 Wizard Run 0 Options --------- Layout 1 ASCII 0 Keyboard 0 Movement Numpad Keybinds 0 Fullscreen 1 Font 24/Smallcaps Map View 50x35 Zoom Use 0% Tactical HUD 0 Map Filters NONE Filters NONE Steam 1 RUN: c05acc22-9f23-466f-9ced-b3eba7f5d21b